fUST/lending_fUST_20250412
["ID","MTS","AMOUNT","RATE_DAILY","PERIOD"]
[357779121,1744438238752,-2919.94858981,0.0002367,2]
[357779123,1744438238764,-7097.05341611,0.0002367,2]
[357779125,1744438238776,-634.90314799,0.0002367,2]
[357779127,1744438238787,-30161.6576594,0.0002367,2]
[357779321,1744438240857,-1687.31251793,0.0002367,2]
[357779323,1744438240871,-4436.71785262,0.0002367,2]
[357779603,1744438243606,-802.09492916,0.0002367,2]
[357779945,1744438247033,-14162.29233212,0.0002367,2]
[357779947,1744438247046,-324.65567513,0.0002367,2]
[357779950,1744438247059,-1850.89589005,0.0002367,2]
[357779952,1744438247071,-500.0,0.0002367,2]
[357781427,1744439432720,-390.825548,0.00022,2]
[357781428,1744439432739,-8636.95187273,0.00022,2]
[357781429,1744439432750,-169.18696544,0.00022,2]
[357781430,1744439432760,-1003.9677628,0.0002257,2]
[357781431,1744439432770,-3252.37952683,0.000229,4]
[357781432,1744439432781,-160.0,0.00023462,2]
[357781433,1744439432791,-1000.0,0.0002347,2]
[357781434,1744439432801,-3252.37952669,0.00023486,4]
[357781435,1744439432811,-207.4,0.00023556,2]
[357781436,1744439432820,-808.92,0.0002356,3]
[357781437,1744439432830,-641.5062254,0.00023569,2]
[357781438,1744439432840,-500.0,0.00023569,2]
[357781439,1744439432850,-74521.38385213,0.0002357,2]
[357781463,1744439438774,-1428.95520089,0.00023473,2]
[357781465,1744439438784,-25813.69627547,0.0002357,2]
[357781485,1744439439010,-4394.51771866,0.0002357,2]
[357781487,1744439439020,-508.32895317,0.00023573,2]
[357781489,1744439439031,-500.0,0.00023573,2]
[357781491,1744439439041,-500.0,0.00023573,2]
[357781492,1744439439051,-44.2153408,0.00023573,2]
[357781671,1744439441164,-455.7846592,0.00023573,2]
[357781673,1744439441175,-44.2153408,0.000236,2]
[357781892,1744439443744,-108.7846592,0.000236,2]
[357781894,1744439443754,-156.7960761,0.000236,2]
[357781896,1744439443764,-208.35,0.00023669,2]
[357781898,1744439443774,-318.0,0.0002367,3]
[357781900,1744439443783,-318.0,0.0002367,3]
[357781902,1744439443793,-207.81586845,0.0002367,3]
[357781904,1744439443803,-318.0,0.0002367,3]
[357781906,1744439443813,-153.0,0.000237,2]
[357781908,1744439443822,-153.0,0.000237,2]
[357781910,1744439443833,-360.397284,0.000237,2]
[357781912,1744439443842,-360.397284,0.000237,2]
[357781914,1744439443852,-153.0,0.000237,2]
[357781916,1744439443861,-360.397284,0.000237,2]
[357781918,1744439443871,-360.397284,0.000237,2]
[357781920,1744439443880,-360.397284,0.000237,2]
[357781922,1744439443890,-153.0,0.000237,2]
[357781924,1744439443899,-726.8528738,0.000237,2]
[357781926,1744439443909,-153.0,0.000237,2]
[357781928,1744439443918,-153.0,0.000237,2]
[357781930,1744439443927,-153.0,0.000237,2]
[357781934,1744439443948,-156.7960761,0.000237,2]
[357781936,1744439443964,-153.0,0.000237,2]
[357781938,1744439443974,-153.0,0.000237,2]
[357781940,1744439443985,-772.81925657,0.00023904,2]
[357781942,1744439443995,-500.0,0.00023973,2]
[357781944,1744439444005,-1696.19004157,0.00024,7]
[357781947,1744439444020,-2020.91219939,0.00024,7]
[357781949,1744439444035,-536.92244762,0.00024,7]
[357782229,1744439446924,-271.23679014,0.00023982,2]
[357784923,1744439974244,1015.0,0.00027,30]
[357785009,1744440631958,-17591.930651,0.0002121,2]
[357785010,1744440631969,-636.66407078,0.00021978,2]
[357785011,1744440631980,-178.46,0.0002199,3]
[357785012,1744440631990,-535.38,0.0002199,3]
[357785013,1744440632000,-637.38179709,0.00021999,2]
[357785014,1744440632011,-187.515,0.00021999,2]
[357785015,1744440632021,-300.0,0.00021999,2]
[357785016,1744440632031,-21789.16896754,0.00022,3]
[357785017,1744440632044,-97997.93137583,0.00022,3]
[357785018,1744440632054,-1499.93358333,0.0002237,2]
[357785019,1744440632064,-1000.0,0.0002247,2]
[357785020,1744440632075,-75.72458768,0.000229,4]
[357785096,1744440638137,-3000.1215966,0.000229,4]
[357785098,1744440638148,-356.92,0.0002336,3]
[357785100,1744440638158,-153.0,0.000234,2]
[357785103,1744440638168,-462.7796033,0.000234,2]
[357785105,1744440638178,-160.0,0.00023464,2]
[357785107,1744440638187,-330.08569584,0.0002347,2]
[357785109,1744440638199,-4099.30582087,0.0002347,2]
[357785111,1744440638211,-1208.75877963,0.0002347,2]
[357785113,1744440638223,-37320.63063623,0.0002347,2]
[357785115,1744440638233,-591.81119853,0.0002347,3]
[357785117,1744440638242,-81824.20953713,0.0002347,2]
[357785552,1744440642923,-5713.91643137,0.0002347,2]
[357787351,1744441832077,-300.0,0.00019999,2]
[357787352,1744441832089,-29.80498334,0.0002,2]
[357787419,1744441838205,-652.57313461,0.0002,2]
[357787422,1744441838219,-1833.12639007,0.0002,2]
[357787431,1744441838300,-760.63236733,0.0002,2]
[357787433,1744441838312,-2723.86312465,0.0002,2]
[357787435,1744441838322,-500.0,0.0002,2]
[357787437,1744441838333,-398.57015515,0.0002,2]
[357787440,1744441838344,-1000.0,0.00021711,2]
[357787442,1744441838354,-420.0,0.00021777,2]
[357787444,1744441838365,-1000.0,0.00021799,2]
[357787446,1744441838376,-782.42274119,0.00021899,2]
[357787448,1744441838387,-2975.78277248,0.000219,3]
[357787450,1744441838398,-740.5920688,0.00022005,2]
[357787452,1744441838408,-2975.78277229,0.00022521,4]
[357787454,1744441838418,-153.0,0.00022678,2]
[357787456,1744441838428,-156.7960761,0.00022678,2]
[357787458,1744441838438,-156.7960761,0.00022678,2]
[357787460,1744441838448,-156.7960761,0.00022978,2]
[357787462,1744441838457,-387.09324376,0.00023141,4]
[357787977,1744441843384,-2588.68952853,0.00023141,4]
[357787979,1744441843394,-153.0,0.00023178,2]
[357787981,1744441843404,-224.0472107,0.00023178,2]
[357787983,1744441843414,-153.0,0.00023178,2]
[357787985,1744441843423,-156.7960761,0.00023178,2]
[357787987,1744441843433,-153.0,0.00023178,2]
[357787989,1744441843442,-156.7960761,0.00023178,2]
[357787991,1744441843452,-156.7960761,0.000232,2]
[357787993,1744441843462,-152.79832386,0.00023273,2]
[357787995,1744441843471,-1530.83994511,0.00023273,2]
[357787997,1744441843481,-577.99646548,0.00023369,2]
[357787999,1744441843490,-107959.12344571,0.0002337,2]
[357788001,1744441843507,-18207.9255071,0.0002337,2]
[357788003,1744441843519,-548.60326933,0.0002337,2]
[357788245,1744441846199,-307.32000001,0.0002291,6]
[357788248,1744441846212,-813.01664618,0.0002291,6]
[357788250,1744441846222,-18219.97591239,0.0002337,2]
[357789448,1744443032318,-521.61715114,0.0002,2]
[357789509,1744443038490,-7352.96618272,0.0002,2]
[357789512,1744443038501,-487.4288,0.00021651,15]
[357789514,1744443038511,-1000.0,0.00021881,2]
[357789516,1744443038521,-300.0,0.00022277,2]
[357789518,1744443038531,-1000.0,0.00022278,2]
[357789520,1744443038542,-67027.70407557,0.00023,2]
[357789522,1744443038552,-1533.20665623,0.00023073,2]
[357789524,1744443038562,-152.79832385,0.00023269,2]
[357789526,1744443038572,-28179.60516653,0.0002327,2]
[357789528,1744443038582,-167.44605738,0.00023369,2]
[357789530,1744443038592,-318.0,0.0002337,3]
[357789533,1744443038603,-358.0,0.0002337,3]
[357789535,1744443038612,-318.0,0.0002337,3]
[357789537,1744443038623,-358.0,0.0002337,3]
[357789566,1744443038885,-358.0,0.0002337,3]
[357789569,1744443038913,-318.0,0.0002337,3]
[357789571,1744443038923,-358.0,0.0002337,3]
[357789573,1744443038933,-318.0,0.0002337,3]
[357789576,1744443038945,-358.0,0.0002337,3]
[357789578,1744443038955,-318.0,0.0002337,3]
[357789580,1744443038965,-358.0,0.0002337,3]
[357789582,1744443038976,-318.0,0.0002337,3]
[357789584,1744443038986,-318.0,0.0002337,3]
[357789586,1744443038998,-358.0,0.0002337,3]
[357789588,1744443039008,-318.0,0.0002337,3]
[357789590,1744443039018,-358.0,0.0002337,3]
[357789592,1744443039028,-318.0,0.0002337,3]
[357789594,1744443039038,-358.0,0.0002337,3]
[357789596,1744443039048,-318.0,0.0002337,3]
[357789598,1744443039058,-358.0,0.0002337,3]
[357789600,1744443039069,-318.0,0.0002337,3]
[357789602,1744443039079,-358.0,0.0002337,3]
[357789605,1744443039091,-318.0,0.0002337,3]
[357789607,1744443039101,-358.0,0.0002337,3]
[357789609,1744443039111,-391.19998625,0.0002337,3]
[357789611,1744443039122,-318.0,0.0002337,3]
[357789613,1744443039132,-447.81826383,0.0002337,3]
[357789615,1744443039142,-358.0,0.0002337,3]
[357789617,1744443039152,-318.0,0.0002337,3]
[357789619,1744443039163,-358.0,0.0002337,3]
[357789621,1744443039174,-318.0,0.0002337,3]
[357789623,1744443039187,-318.0,0.0002337,3]
[357789626,1744443039198,-358.0,0.0002337,3]
[357789628,1744443039208,-318.0,0.0002337,3]
[357789630,1744443039219,-358.0,0.0002337,3]
[357789632,1744443039230,-318.0,0.0002337,3]
[357789634,1744443039240,-358.0,0.0002337,3]
[357789636,1744443039252,-318.0,0.0002337,3]
[357789638,1744443039262,-358.0,0.0002337,3]
[357789640,1744443039272,-318.0,0.0002337,3]
[357789642,1744443039282,-318.0,0.0002337,3]
[357789644,1744443039292,-1041.66666667,0.00023415,2]
[357789646,1744443039302,-160.0,0.00023458,2]
[357789648,1744443039312,-500.0,0.0002347,2]
[357789650,1744443039322,-151.0,0.0002347,2]
[357789652,1744443039331,-160.0,0.0002347,3]
[357789654,1744443039341,-156.043243,0.0002355,3]
[357789656,1744443039351,-287.2028663,0.00023766,2]
[357789658,1744443039360,-213.4946232,0.00023766,2]
[357789660,1744443039370,-213.4946232,0.00023766,2]
[357789662,1744443039379,-213.4946232,0.00023766,2]
[357789665,1744443039388,-213.4946232,0.00023766,2]
[357789667,1744443039398,-1000.0,0.000238,2]
[357789669,1744443039408,-1000.0,0.000238,3]
[357789671,1744443039418,-1000.0,0.000238,4]
[357789673,1744443039428,-2678.20449509,0.000239,5]
[357789675,1744443039438,-2251.0,0.00023933,2]
[357789677,1744443039448,-402.0,0.00023933,2]
[357789679,1744443039458,-402.0,0.00023933,2]
[357789681,1744443039469,-502.58018827,0.00023973,2]
[357789683,1744443039480,-500.0,0.00023973,2]
[357789685,1744443039490,-500.0,0.00023973,2]
[357789687,1744443039501,-501.24062451,0.00023973,2]
[357789689,1744443039511,-207.22952651,0.00023973,2]
[357789691,1744443039521,-500.0,0.00023973,2]
[357789694,1744443039531,-500.0,0.00023973,2]
[357789696,1744443039541,-500.0,0.00023973,2]
[357789698,1744443039551,-438.87136445,0.00023973,2]
[357789700,1744443039560,-501.05854735,0.00023973,2]
[357789702,1744443039569,-500.0,0.00023973,2]
[357789704,1744443039579,-373.55543027,0.00023973,2]
[357789706,1744443039588,-500.0,0.00023973,2]
[357789708,1744443039598,-500.0,0.00023973,2]
[357789710,1744443039609,-500.0,0.00023973,2]
[357789712,1744443039618,-500.0,0.00023973,2]
[357789714,1744443039628,-536.46656114,0.00023973,2]
[357789716,1744443039637,-500.0,0.00023973,2]
[357789718,1744443039647,-150.244941,0.00023973,2]
[357789720,1744443039657,-500.0,0.00023973,2]
[357789723,1744443039667,-500.0,0.00023973,2]
[357789725,1744443039676,-500.0,0.00023973,2]
[357789727,1744443039686,-500.0,0.00023973,2]
[357789729,1744443039696,-500.0,0.00023973,2]
[357789731,1744443039706,-500.0,0.00023973,2]
[357789733,1744443039715,-500.0,0.00023973,2]
[357789735,1744443039725,-176.38753068,0.00023981,2]
[357789738,1744443039735,-183.589132,0.00023981,2]
[357789740,1744443039745,-500.0,0.00023982,2]
[357789742,1744443039755,-3963.81808241,0.00024,2]
[357789744,1744443039768,-25704.65097584,0.00024,2]
[357789746,1744443039778,-597.08216693,0.00024,3]
[357789748,1744443039789,-33313.28116091,0.00024,7]
[357789750,1744443039799,-500.0,0.00024,2]
[357789752,1744443039809,-151.0,0.00024,7]
[357789754,1744443039819,-151.0,0.00024,7]
[357789756,1744443039828,-151.0,0.00024,7]
[357789758,1744443039838,-151.0,0.00024,7]
[357789761,1744443039848,-151.0,0.00024,7]
[357789765,1744443039859,-151.0,0.00024,7]
[357789768,1744443039869,-151.0,0.00024,7]
[357789770,1744443039880,-151.0,0.00024,7]
[357789772,1744443039890,-151.0,0.00024,7]
[357789776,1744443039913,-377.436557,0.00024,7]
[357789778,1744443039925,-377.436557,0.00024,7]
[357789780,1744443039935,-786.123017,0.00024,7]
[357789782,1744443039945,-786.123017,0.00024,7]
[357789784,1744443039956,-786.123017,0.00024,7]
[357789786,1744443039967,-786.123017,0.00024,7]
[357789788,1744443039977,-151.0,0.00024,7]
[357789791,1744443039988,-151.0,0.00024,7]
[357789793,1744443039999,-151.0,0.00024,7]
[357789795,1744443040010,-151.0,0.00024,7]
[357789797,1744443040020,-151.0,0.00024,7]
[357789799,1744443040031,-151.0,0.00024,7]
[357789801,1744443040042,-151.0,0.00024,7]
[357789803,1744443040052,-313.643206,0.00024,7]
[357789806,1744443040063,-313.643206,0.00024,7]
[357789809,1744443040073,-313.643206,0.00024,7]
[357789811,1744443040084,-313.643206,0.00024,7]
[357789813,1744443040094,-151.0,0.00024,7]
[357789815,1744443040105,-151.0,0.00024,7]
[357789817,1744443040115,-167.16028,0.00024,7]
[357789819,1744443040125,-167.16028,0.00024,7]
[357789821,1744443040135,-151.0,0.00024,7]
[357789823,1744443040146,-151.0,0.00024,7]
[357789825,1744443040157,-167.16028,0.00024,7]
[357789828,1744443040167,-167.16028,0.00024,7]
[357789830,1744443040181,-1648.664985,0.00024,7]
[357789832,1744443040195,-1648.664985,0.00024,7]
[357789834,1744443040206,-1648.664985,0.00024,7]
[357789836,1744443040217,-1648.664985,0.00024,7]
[357789838,1744443040227,-151.0,0.00024,7]
[357789840,1744443040237,-151.0,0.00024,7]
[357789842,1744443040247,-151.0,0.00024,7]
[357789844,1744443040258,-151.0,0.00024,7]
[357789846,1744443040269,-151.0,0.00024,7]
[357789848,1744443040279,-151.0,0.00024,7]
[357789850,1744443040290,-151.0,0.00024,7]
[357789853,1744443040302,-151.0,0.00024,7]
[357789855,1744443040312,-151.0,0.00024,7]
[357789857,1744443040323,-160.0,0.00024,7]
[357789859,1744443040334,-151.0,0.00024,7]
[357789861,1744443040344,-218.025639,0.00024,7]
[357789863,1744443040354,-153.271566,0.00024,7]
[357789865,1744443040366,-153.271566,0.00024,7]
[357789867,1744443040376,-153.271566,0.00024,7]
[357789870,1744443040387,-153.271566,0.00024,7]
[357789872,1744443040397,-727.999944,0.00024,7]
[357789874,1744443040407,-210.25230649,0.00024,7]
[357789876,1744443040420,-517.74763751,0.00024,7]
[357789878,1744443040431,-151.0,0.00024,7]
[357789880,1744443040441,-151.0,0.00024,7]
[357789882,1744443040451,-727.999944,0.00024,7]
[357789884,1744443040461,-727.999944,0.00024,7]
[357789886,1744443040471,-166.551087,0.00024,7]
[357789889,1744443040481,-166.551087,0.00024,7]
[357789891,1744443040490,-166.551087,0.00024,7]
[357789893,1744443040500,-166.551087,0.00024,7]
[357789895,1744443040510,-151.0,0.00024,7]
[357789897,1744443040520,-151.0,0.00024,7]
[357789899,1744443040536,-151.0,0.00024,7]
[357789901,1744443040546,-151.0,0.00024,7]
[357789903,1744443040557,-151.0,0.00024,7]
[357789904,1744443040567,-151.0,0.00024,7]
[357789907,1744443040578,-151.0,0.00024,7]
[357789910,1744443040588,-151.0,0.00024,7]
[357789913,1744443040599,-151.0,0.00024,7]
[357789915,1744443040609,-151.0,0.00024,7]
[357789917,1744443040619,-151.0,0.00024,2]
[357789919,1744443040629,-151.0,0.00024,7]
[357789921,1744443040640,-286.533868,0.00024,7]
[357789922,1744443040650,-1000.0,0.00024,24]
[357789924,1744443040660,-151.0,0.00024,7]
[357789926,1744443040671,-151.0,0.00024,7]
[357789928,1744443040682,-151.0,0.00024,7]
[357789930,1744443040692,-284.412143,0.00024,7]
[357789932,1744443040702,-151.0,0.00024,7]
[357789933,1744443040712,-151.0,0.00024,7]
[357789935,1744443040722,-258.94655,0.00024,7]
[357789937,1744443040734,-766.66225617,0.00024018,2]
[357789939,1744443040744,-151.0,0.00024018,2]
[357789941,1744443040754,-193.413,0.00024023,2]
[357789943,1744443040764,-197.598,0.00024023,2]
[357789945,1744443040774,-281.06,0.00024023,2]
[357789947,1744443040784,-171.47209,0.00024023,7]
[357789948,1744443040798,-151.0,0.00024023,7]
[357789950,1744443040809,-151.0,0.00024023,7]
[357789952,1744443040819,-151.0,0.00024023,7]
[357789954,1744443040829,-151.0,0.00024023,7]
[357789956,1744443040839,-151.0,0.00024023,7]
[357789957,1744443040850,-619.110714,0.00024023,7]
[357789959,1744443040860,-619.110714,0.00024023,7]
[357789961,1744443040871,-151.0,0.00024023,7]
[357789963,1744443040880,-151.0,0.00024023,7]
[357789965,1744443040890,-151.0,0.00024023,7]
[357789967,1744443040901,-151.0,0.00024023,7]
[357789969,1744443040910,-331.1580859,0.00024077,2]
[357789970,1744443040920,-240.719,0.00024126,6]
[357789972,1744443040930,-420.0,0.00024201,2]
[357789974,1744443040940,-1768.21625729,0.00024452,5]
[357789976,1744443040953,-909.98823777,0.00024452,5]
[357789978,1744443040963,-151.0,0.00024452,7]
[357789980,1744443040973,-202.00522434,0.00024566,2]
[357789982,1744443040983,-151.0,0.000248,10]
[357789984,1744443040993,-152.79832385,0.000248,2]
[357789986,1744443041004,-3451.72821404,0.00024872,5]
[357789988,1744443041016,-33354.72433931,0.00024872,5]
[357789993,1744443041063,-176.38753068,0.00023981,2]
[357789995,1744443041072,-3497.3582263,0.00024872,5]
[357789997,1744443041085,-597.95323649,0.00024872,5]
[357790407,1744443046360,-543.0,0.00023943,2]
[357790409,1744443046371,-176.38753068,0.00024799,2]
[357790411,1744443046381,-183.589132,0.00024799,2]
[357790413,1744443046391,-155.18667445,0.00024872,5]
[357791527,1744444232362,-637.08162732,0.00021921,2]
[357791529,1744444232430,-362.91837268,0.00021921,2]
[357791530,1744444232440,-567.73676671,0.00022753,2]
[357791531,1744444232451,-163.13351095,0.000228,2]
[357791532,1744444232460,-1646.09629373,0.000228,2]
[357791533,1744444232471,-500.0,0.00022873,2]
[357791534,1744444232481,-500.0,0.00022873,2]
[357791547,1744444232717,-500.0,0.00022873,2]
[357791549,1744444232727,-157.996,0.00022873,2]
[357791551,1744444232737,-268.5,0.00022873,2]
[357791553,1744444232747,-160.0,0.00022873,2]
[357791555,1744444232757,-439.0,0.00022873,2]
[357791557,1744444232767,-160.0,0.00022873,2]
[357791559,1744444232778,-158.5,0.00022873,2]
[357791562,1744444232788,-160.0,0.00022873,2]
[357791564,1744444232798,-163.5,0.00022873,2]
[357791566,1744444232808,-158.5,0.00022873,2]
[357791568,1744444232818,-500.0,0.00022873,2]
[357791570,1744444232827,-500.0,0.00022873,2]
[357791572,1744444232837,-251.0706154,0.00022873,2]
[357791574,1744444232847,-500.0,0.00022873,2]
[357791576,1744444232857,-160.0,0.00022873,2]
[357791578,1744444232867,-158.2648,0.00022873,2]
[357791579,1744444232876,-500.0,0.00022873,2]
[357791580,1744444232886,-260.0,0.00022873,2]
[357791581,1744444232896,-583.10274552,0.00022873,2]
[357791582,1744444232906,-158.5,0.00022873,2]
[357791583,1744444232915,-500.0,0.00022873,2]
[357791584,1744444232925,-200.0,0.00022873,2]
[357791585,1744444232935,-500.0,0.00022873,2]
[357791586,1744444232945,-206.37566746,0.00022873,2]
[357791587,1744444232954,-160.0,0.00022873,2]
[357791588,1744444232964,-155.0,0.00022873,2]
[357791589,1744444232974,-500.0,0.00022873,2]
[357791590,1744444232984,-247.18297428,0.00022873,2]
[357791591,1744444232994,-151.0,0.00022886,2]
[357791592,1744444233003,-263.63406322,0.00022886,2]
[357791593,1744444233014,-207.4,0.00022886,2]
[357791594,1744444233024,-3519.83,0.0002289,3]
[357791595,1744444233034,-639.02200617,0.00022899,2]
[357791596,1744444233045,-192.45186762,0.00022899,2]
[357791597,1744444233055,-500.0,0.00022899,2]
[357791598,1744444233065,-17252.22363997,0.000229,2]
[357791599,1744444233074,-298.54108346,0.000229,3]
[357791600,1744444233084,-370000.0,0.000229,2]
[357791601,1744444233094,-2960.08893673,0.000229,4]
[357791602,1744444233105,-152.0,0.00022943,2]
[357791603,1744444233117,-163.13351093,0.00023253,2]
[357791604,1744444233127,-160.0,0.00023324,2]
[357791605,1744444233140,-2960.08893657,0.00023486,4]
[357791606,1744444233150,-163.13351093,0.00023707,2]
[357791607,1744444233161,-1000.0,0.00023843,2]
[357791608,1744444233171,-160.0,0.00023892,2]
[357791609,1744444233181,-197.726411,0.00024,7]
[357791610,1744444233191,-197.726411,0.00024,7]
[357791611,1744444233201,-197.726411,0.00024,7]
[357791612,1744444233211,-197.726411,0.00024,7]
[357791613,1744444233221,-151.0,0.00024,7]
[357791614,1744444233233,-151.0,0.00024,7]
[357791615,1744444233245,-388.396717,0.00024,2]
[357791616,1744444233255,-151.0,0.00024,7]
[357791617,1744444233266,-388.396717,0.00024,2]
[357791618,1744444233276,-151.0,0.00024,7]
[357791619,1744444233285,-388.396717,0.00024,2]
[357791620,1744444233296,-151.0,0.00024,7]
[357791621,1744444233306,-388.396717,0.00024,2]
[357791622,1744444233317,-151.0,0.00024,7]
[357791623,1744444233326,-151.0,0.00024,7]
[357791624,1744444233337,-151.0,0.00024,7]
[357791625,1744444233349,-246.14283,0.00024,7]
[357791626,1744444233360,-151.0,0.00024,7]
[357791627,1744444233371,-151.0,0.00024,7]
[357791628,1744444233381,-151.0,0.00024,7]
[357791629,1744444233392,-151.0,0.00024,7]
[357791630,1744444233402,-894.34978914,0.00024,2]
[357791631,1744444233412,-151.0,0.00024,2]
[357791632,1744444233422,-192.575,0.00024014,5]
[357791633,1744444233432,-706.0,0.00024023,2]
[357791634,1744444233443,-543.0,0.00024023,2]
[357791635,1744444233453,-2251.0,0.00024023,2]
[357791636,1744444233464,-197.726411,0.00024023,7]
[357791637,1744444233475,-197.726411,0.00024023,7]
[357791638,1744444233485,-151.0,0.00024023,7]
[357791639,1744444233496,-388.396717,0.00024023,2]
[357791640,1744444233507,-388.396717,0.00024023,2]
[357791641,1744444233517,-151.0,0.00024023,7]
[357791642,1744444233527,-151.0,0.00024023,7]
[357791643,1744444233537,-2960.08893657,0.00024072,5]
[357791644,1744444233547,-248.3685644,0.00024077,2]
[357791645,1744444233558,-163.13351093,0.0002416,2]
[357791646,1744444233568,-160.0,0.0002426,3]
[357791647,1744444233578,-160.0,0.0002426,3]
[357791648,1744444233590,-7039.66,0.0002426,3]
[357791649,1744444233604,-151.0,0.00024452,7]
[357791650,1744444233614,-151.0,0.00024452,7]
[357791651,1744444233624,-154.216107,0.00024452,7]
[357791652,1744444233635,-160.0,0.00024452,7]
[357791653,1744444233645,-153.0,0.00024521,2]
[357791654,1744444233655,-153.0,0.00024521,2]
[357791655,1744444233666,-153.0,0.00024521,2]
[357791656,1744444233676,-153.0,0.00024521,2]
[357791657,1744444233687,-153.0,0.00024521,2]
[357791658,1744444233697,-327.1312848,0.00024521,2]
[357791659,1744444233707,-151.0,0.00024548,2]
[357791660,1744444233717,-2960.08893657,0.00024659,5]
[357791661,1744444233728,-151.0,0.000247,7]
[357791662,1744444233738,-183.589132,0.00024799,2]
[357791663,1744444233748,-800.0,0.000248,4]
[357791664,1744444233758,-156.043243,0.0002484,3]
[357791665,1744444233768,-30940.18426952,0.00024872,5]
[357791666,1744444233778,-151.0,0.00024872,7]
[357791667,1744444233788,-167.401203,0.00024872,7]
[357791668,1744444233798,-167.401203,0.00024872,7]
[357791669,1744444233808,-500.0,0.00024872,7]
[357791670,1744444233818,-500.0,0.00024872,7]
[357791671,1744444233827,-152.064819,0.00024872,7]
[357791672,1744444233837,-151.0,0.00024872,7]
[357791673,1744444233848,-151.0,0.00024872,7]
[357791674,1744444233858,-151.0,0.00024872,7]
[357791675,1744444233868,-151.0,0.00024872,7]
[357791676,1744444233879,-197.726411,0.00024872,7]
[357791677,1744444233889,-197.726411,0.00024872,7]
[357791678,1744444233899,-151.0,0.00024872,7]
[357791679,1744444233910,-388.396717,0.00024872,2]
[357791680,1744444233920,-151.0,0.00024872,7]
[357791681,1744444233931,-388.396717,0.00024872,2]
[357791682,1744444233941,-151.0,0.00024872,7]
[357791683,1744444233951,-151.0,0.00024872,7]
[357791684,1744444233961,-151.0,0.00024872,7]
[357791685,1744444233971,-151.0,0.00024872,7]
[357791686,1744444233981,-160.0,0.00024872,7]
[357791687,1744444233992,-151.0,0.00024872,7]
[357791688,1744444234002,-216.997549,0.00024872,7]
[357791689,1744444234012,-151.0,0.00024872,7]
[357791690,1744444234022,-151.0,0.00024872,7]
[357791691,1744444234032,-185.17044561,0.00024873,2]
[357791692,1744444234042,-501.70343701,0.00024873,2]
[357791693,1744444234053,-650.0,0.00024873,2]
[357791694,1744444234063,-500.0,0.00024873,2]
[357791695,1744444234073,-160.0,0.00024873,2]
[357791696,1744444234083,-527.70633108,0.00024873,2]
[357791697,1744444234093,-262.99,0.00024873,2]
[357791698,1744444234103,-160.5,0.00024873,2]
[357791699,1744444234112,-501.22755341,0.00024873,2]
[357791700,1744444234122,-501.07614132,0.00024873,2]
[357791701,1744444234131,-500.0,0.00024873,2]
[357791702,1744444234142,-500.0,0.00024873,2]
[357791703,1744444234152,-500.0,0.00024873,2]
[357791704,1744444234163,-274.93307599,0.00024873,2]
[357791705,1744444234173,-500.0,0.00024873,2]
[357791706,1744444234183,-500.0,0.00024873,2]